Cogmind - Beta 15 @@@ ROGUE MODE // 2025.08.10 @ 23:31:58 Player: Naughtyusername Result: Destroyed by Y-72 Warden with Railgun Performance ------------- Evolutions (8) 4000 Regions Visited (26) 5200 Robots Destroyed (475) 2375 Value Destroyed (24700) 24700 Prototype IDs (66) 1320 Alien Tech Used (9) 1800 Bonus (17034) 17034 TOTAL SCORE: 56429 Bonus ------- Triggered High Security 500 High Alert Combat Kills 6582 Follower Combat Kills 1816 Network Hubs Disabled 200 Met Data Miner 300 Met Zhirov 300 Built Enhanced Grunts 300 Met R17 at Cetus 500 Met R17 at Research 2000 Scanned by Researcher 1000 Acquired SGEMP 2000 Met Sigix 2000 Friendly Fire -464 Cogmind --------- Core Integrity 0/1450 Matter 34/300 Energy 500/500 System Corruption 20% Temperature Cool (9) Movement Core (100) Ox1 Location -2/Section 7 Parts ------- > --- POWER (3) -------- (None) > --- PROPULSION (6) --- (None) > --- UTILITY (11) ----- Improved Energy Well > --- WEAPON (3) ------- (None) > --- INVENTORY (5) ---- Coolant Network Sigix Containment Pod Peak State ------------ > --- POWER ------------ Reinforced Quantum Reactor Vortex Chain Reactor > --- PROPULSION ------- High-density Centrium Heavy Treads High-density Centrium Heavy Treads High-density Centrium Heavy Treads > --- UTILITY ---------- Experimental Heat Sink Coolant Network Huge Storage Unit Experimental Weapon Cycler Medium Regenerative Plating SHELL Armor Graphene Brace Experimental Force Field > --- WEAPON ----------- Nova Cannon Improved Potential Cannon > --- INVENTORY -------- Vortex Chain Reactor Improved Heavy Siege Treads Coolant Network Improved Energy Well Advanced Energy Well Experimental Energy Well Advanced Dynamic Insulation System Dimensional Node Initializer High-powered Transdimensional Reconstructor Core Reset Matrix Subatomic Replicator Improved Potential Cannon Disintegrator Core Cannon Z-bomb Delivery System SGEMP Prototype Sigix Containment Pod [Rating: 241] Favorites ----------- Power Micro Fission Core Engine Deuterium Engine Power Core Micro Fission Core Reactor Particle Reactor Propulsion Compact Wheel Treads Improved Medium Treads Leg Flexi-carbon Leg Wheel Compact Wheel Hover Unit Gravmag Array Utility Huge Storage Unit Device Improved Sensor Array Storage Huge Storage Unit Processor Improved Signal Interpreter Hackware Advanced Hacking Suite Protection Centrium Medium Armor Plating Artifact Phase Armor Weapon Ion Burst Cannon Energy Gun Cooled Phase Gun Energy Cannon Ion Burst Cannon Ballistic Gun Heavy Machine Gun Ballistic Cannon Advanced Assault Cannon Launcher Mini Grenade Launcher Special Weapon Molecular Deconstructor Impact Weapon Core Stripper Build | -11 -10 -9 -8 -8 -7 -7 -7 -7 -6 -6 -6 -5 -5 -5 -5 -4 -4 -4 -4 -4 -4 -3 -3 -2 -2 -2 ------- Run | Yrd Mat Mat Mat Sto Fac Low Low Dat Pro Fac Low Fac Upp Upp Zhi Pro Fac Ext Cet Arc Hub Res Qua Res Tes Sec Slots Evolved 16 | . . 2 2 . 2 . . . . 2 . 2 . . . . 2 . . . . 2 . 2 . . Power 2 | . . . 1 . . . . . . . . 1 . . . . . . . . . . . . . . Propulsion 4 | . . . . . 2 . . . . . . . . . . . 1 . . . . 1 . . . . Utility 9 | . . 2 1 . . . . . . 1 . 1 . . . . 1 . . . . 1 . 2 . . Weapon 1 | . . . . . . . . . . 1 . . . . . . . . . . . . . . . . Parts Attached 326 | . 16 33 20 12 18 . . . 3 28 7 28 5 . 3 1 14 24 3 4 1 23 17 15 44 7 Power 50 | . 2 1 4 3 2 . . . . 5 2 3 1 . 1 1 2 3 1 1 . 3 4 4 6 1 Engine 8 | . 2 1 1 2 . . . . . 2 . . . . . . . . . . . . . . . . Core 21 | . . . 3 1 2 . . . . 2 2 3 1 . . 1 1 3 1 . . 1 . . . . Reactor 21 | . . . . . . . . . . 1 . . . . 1 . 1 . . 1 . 2 4 4 6 1 Propulsion 81 | . 8 7 4 1 6 . . . . 6 1 10 . . . . 3 9 1 2 . 4 3 5 10 1 Treads 42 | . 2 . . . 3 . . . . . . 3 . . . . 3 9 1 2 . 4 3 3 8 1 Leg 3 | . 2 . . . . . . . . 1 . . . . . . . . . . . . . . . . Wheel 34 | . 4 7 4 1 3 . . . . 3 1 7 . . . . . . . . . . . 2 2 . Hover 2 | . . . . . . . . . . 2 . . . . . . . . . . . . . . . . Flight . | . . . . . . . . . . . . . . . . . . . . . . . . . . . Utility 116 | . 3 7 6 2 3 . . . 3 11 1 9 . . 2 . 9 8 1 1 1 14 8 4 22 1 Device 61 | . 2 4 5 . 2 . . . . 5 1 6 . . . . 6 3 . . . 8 5 1 12 1 Storage 8 | . 1 1 . . . . . . . 1 . 1 . . 1 . . . . . . . . 1 2 . Processor 13 | . . 1 1 . . . . . 1 3 . 1 . . . . 1 . . . . 3 . . 2 . Hackware 5 | . . . . . . . . . . . . 1 . . . . 1 . . . . 2 . 1 . . Protection 27 | . . 1 . 2 1 . . . 2 2 . . . . 1 . 1 5 1 1 1 1 1 1 6 . Artifact 2 | . . . . . . . . . . . . . . . . . . . . . . . 2 . . . Weapon 79 | . 3 18 6 6 7 . . . . 6 3 6 4 . . . . 4 . . . 2 2 2 6 4 Energy Gun 21 | . 2 5 2 . 1 . . . . 4 1 2 1 . . . . . . . . 1 1 . 1 . Energy Cannon 40 | . . 9 4 5 3 . . . . . 1 3 1 . . . . 4 . . . 1 . 2 4 3 Ballistic Gun 3 | . 1 1 . . . . . . . . 1 . . . . . . . . . . . . . . . Ballistic Cannon 3 | . . . . . 1 . . . . 1 . . 1 . . . . . . . . . . . . . Launcher 9 | . . 3 . 1 2 . . . . . . . 1 . . . . . . . . . 1 . . 1 Special Weapon 2 | . . . . . . . . . . 1 . 1 . . . . . . . . . . . . . . Impact Weapon 1 | . . . . . . . . . . . . . . . . . . . . . . . . . 1 . Slashing Weapon . | . . . . . . . . . . . . . . . . . . . . . . . . . . . Piercing Weapon . | . . . . . . . . . . . . . . . . . . . . . . . . . . . Special Melee Weapon . | . . . . . . . . . . . . . . . . . . . . . . . . . . . Unidentified Prototypes 46 | . 1 4 2 . 1 . . . . 2 . 1 1 . 3 . . . 2 . . 2 3 . 21 3 Corrupted Parts 2 | . . . . . . . . . . . . . . . . . . . 1 . . 1 . . . . System Corruption 7 | . . . . . . . . . . . . . . . . . . . 5 . . 2 . . . . Parts Lost 104 | . 3 8 1 1 1 . . . . 18 1 11 1 3 . . 5 7 . . . 1 3 12 13 15 Power 23 | . 1 . . 1 . . . . . 3 . 1 1 1 . . 1 1 . . . . 3 4 3 3 Propulsion 32 | . 2 4 . . 1 . . . . 5 . 5 . . . . 2 3 . . . . . 3 3 4 Utility 29 | . . 2 . . . . . . . 4 . 2 . 2 . . 1 3 . . . 1 . 3 5 6 Weapon 20 | . . 2 1 . . . . . . 6 1 3 . . . . 1 . . . . . . 2 2 2 Highest Loss Streak 17 | . 2 3 1 1 1 . . . . 17 1 4 1 2 . . 2 2 . . . 1 1 6 6 10 To Critical Strikes 2 | . . . . . . . . . . . . . . . . . . 1 . . . . . . . 1 Average Backups 22 | 6 12 21 24 24 24 25 25 25 24 20 23 24 23 24 24 24 22 22 24 23 23 22 22 19 17 15 Power 1 | 1 . 1 1 1 2 2 2 2 2 1 1 1 3 2 2 2 1 2 2 2 2 1 . 1 . . Propulsion 2 | 4 5 3 3 3 . 2 2 2 2 2 4 2 1 3 3 3 1 . 1 1 2 1 1 . . 1 Utility 8 | . 2 1 7 8 10 10 10 10 10 8 11 10 8 8 6 9 9 11 11 12 13 13 9 7 6 5 Weapon 8 | 1 3 13 12 12 11 11 11 11 10 7 6 8 9 9 11 8 8 7 7 5 4 4 5 5 6 3 Tool/Special . | . . . . . . . . . . . . . . . . . . . . . . . . . . . Unused Backups 71 | . 1 16 3 2 4 . . . . 2 . 5 . 1 2 1 6 2 4 . . 5 5 1 7 4 Power 5 | . . 1 . 1 . . . . . . . . . . . . . 1 . . . 2 . . . . Propulsion 14 | . . 2 1 . 1 . . . . 1 . 4 . . 1 . . . . . . . 2 . 2 . Utility 21 | . . 4 . . 1 . . . . 1 . . . 1 1 1 1 . 2 . . 1 1 . 5 2 Weapon 29 | . 1 9 2 1 2 . . . . . . 1 . . . . 5 1 2 . . 2 2 1 . . Tool/Special 2 | . . . . . . . . . . . . . . . . . . . . . . . . . . 2 Average Slot Usage (%) 90 | . 86 98 99 100 99 100 100 86 100 81 86 94 93 93 77 94 94 96 84 87 94 94 85 79 74 60 Engine 2 | . 13 11 5 12 10 . . . . . . 4 . . . . . . . . . . . . . . Core 7 | . . . 12 5 4 15 15 15 15 8 7 10 16 16 14 11 8 8 10 10 10 4 2 . . . Reactor 3 | . . . . . . . . . . . . . . . 2 5 5 6 5 5 5 8 10 11 11 7 Treads 11 | . 3 . . . 16 7 7 7 7 3 . 1 17 17 16 17 21 24 21 21 21 22 19 13 8 12 Wheel 7 | . 7 21 18 18 13 23 23 23 23 14 18 15 . . . . . . . . . . . . 8 . Device 18 | . 9 20 26 26 22 22 23 23 14 13 13 18 18 16 16 16 18 18 21 21 19 16 19 22 18 17 Storage 6 | . 14 12 9 9 7 7 7 7 7 6 11 5 5 5 5 5 5 5 5 5 5 4 4 4 7 7 Processor 8 | . . 6 8 9 7 7 7 7 14 11 13 10 11 11 11 11 10 8 5 5 5 8 9 8 4 . Protection 3 | . . 4 . . . . . . . 2 . 2 3 5 4 5 2 3 5 6 11 5 . 3 6 4 Energy Gun 3 | . 20 9 . . 1 9 15 1 8 2 1 4 5 5 . . . 3 . . . 2 3 1 . . Energy Cannon 9 | . . 11 16 16 11 5 . . 4 6 7 10 10 9 1 11 13 11 10 11 15 11 9 10 7 7 Peak Build Rating 241 | 6 14 22 36 37 45 42 42 42 40 71 64 94 91 94 89 97 116 113 134 136 139 162 180 189 241 241 Average Rating 96 | 6 9 19 32 36 42 41 42 34 39 51 50 73 88 89 72 91 107 105 127 134 135 156 169 175 181 233 On Entrance 81 | 6 6 14 22 36 37 42 42 42 40 39 43 61 90 88 85 89 97 102 113 134 134 139 162 160 127 241 Naked Turns 29 | . . . . . . . . . . 29 . . . . . . . . . . . . . . . . Heaviest Build 233 | 11 92 108 114 117 125 111 102 108 110 123 125 135 133 133 134 158 157 179 168 175 181 181 208 209 233 233 Greatest Support 270 | 20 40 26 22 28 66 38 38 38 38 44 42 130 130 130 130 130 157 131 158 163 163 220 220 195 270 270 Greatest Overweight (x) 28 | . 28 9 10 4 9 2 2 2 2 6 2 5 1 1 1 1 1 1 1 1 1 . . 9 17 2 Average Overweight (x) 1 | . 3 4 4 3 3 2 2 2 2 2 2 2 . . . 1 . 1 1 1 1 . . 1 4 . Largest Inventory Capacity 25 | 8 25 25 25 25 25 25 25 25 25 25 25 25 25 25 25 25 25 25 25 25 25 25 25 25 25 25 Average Capacity 24 | 8 19 25 25 25 25 25 25 25 25 22 25 25 25 25 25 25 25 25 25 25 25 25 25 25 25 24 Most Carried 25 | 6 21 25 25 25 25 25 25 25 25 25 25 25 25 25 25 25 25 25 25 25 25 25 25 25 25 25 Average Carried 23 | 6 12 21 24 24 24 25 25 25 24 21 24 24 23 24 24 24 23 24 24 24 25 24 24 23 24 24 Final Capacity 25 | 8 25 25 25 25 25 25 25 25 25 25 25 25 25 25 25 25 25 25 25 25 25 25 25 25 25 5 Final Carried 25 | 6 20 25 25 25 25 25 25 25 25 25 25 23 24 24 24 25 25 25 25 25 25 25 24 19 25 4 Class Distribution -------------------- 31% | Mutant 20% | Tank 18% | Scavenger-Tank 10% | Skirmisher 5% | Gunner 3% | Commander-Gunner 3% | Commander-Tank 3% | Scavenger-Gunner Dominant Class ---------------- Mutant | -10/Materials Mutant | -9/Materials Mutant | -8/Materials Mutant | -8/Storage Mutant | -7/Factory Mutant | -7/Lower Caves Mutant | -7/Lower Caves Mutant | -7/Data Miner Mutant | -6/Proximity Caves Skirmisher | -6/Factory Mutant | -6/Lower Caves Skirmisher | -5/Factory Scavenger-Tank | -5/Upper Caves Tank | -5/Upper Caves Mutant | -5/Zhirov Tank | -4/Proximity Caves Skirmisher | -4/Factory Commander-Gunner | -4/Extension Commander-Tank | -4/Cetus Commander-Tank | -4/Archives Commander-Tank | -4/Hub_04(d) Scavenger-Tank | -3/Research Gunner | -3/Quarantine Tank | -2/Research Scavenger-Tank | -2/Testing Tank | -2/Section 7 Resources | -11 -10 -9 -8 -8 -7 -7 -7 -7 -6 -6 -6 -5 -5 -5 -5 -4 -4 -4 -4 -4 -4 -3 -3 -2 -2 -2 ----------- Run | Yrd Mat Mat Mat Sto Fac Low Low Dat Pro Fac Low Fac Upp Upp Zhi Pro Fac Ext Cet Arc Hub Res Qua Res Tes Sec Matter Collected 9887 | 200 297 482 493 266 589 141 54 . 235 496 533 716 390 483 . 350 496 516 326 24 65 475 626 387 979 268 Remotely 298 | . . . . . . . . . . . . 94 . . . . 204 . . . . . . . . . Salvage Created 23799 | . 775 1786 882 730 784 163 75 . 210 410 302 1871 398 419 . 135 871 1663 282 194 65 763 2340 3287 2392 3002 Parts 993 | . 46 129 54 53 35 12 2 . 16 10 1 69 9 15 . 3 30 43 13 9 1 35 118 119 84 87 Haulers Intercepted 19 | . 1 6 5 4 . . . . . . . . . . . . . 1 . . . . . 2 . . Recyclers Shooed 11 | . . 3 . 1 . . . . . 1 . 2 . . . . . 1 . . . 1 . 1 1 . Parts Field Recycled . | . . . . . . . . . . . . . . . . . . . . . . . . . . . Retrieved Matter . | . . . . . . . . . . . . . . . . . . . . . . . . . . . Parts Self-Destructed 50 | . . . . . . 5 1 . 15 . 5 . 10 12 . 2 . . . . . . . . . . Prevented 9 | . . . . . . 3 . . 4 . . . . 2 . . . . . . . . . . . . Kills | -11 -10 -9 -8 -8 -7 -7 -7 -7 -6 -6 -6 -5 -5 -5 -5 -4 -4 -4 -4 -4 -4 -3 -3 -2 -2 -2 ------- Run | Yrd Mat Mat Mat Sto Fac Low Low Dat Pro Fac Low Fac Upp Upp Zhi Pro Fac Ext Cet Arc Hub Res Qua Res Tes Sec Combat Hostiles Destroyed 356 | . 11 30 16 11 9 2 . . 10 8 1 25 10 14 . 4 18 21 3 2 1 11 32 44 29 44 Guns 43 | . 10 14 . . 2 1 . . . 4 1 2 2 . . . 1 3 . . . 2 1 . . . Cannons 146 | . . 9 4 9 3 1 . . 2 3 . 17 . . . . 15 12 1 1 1 6 20 18 13 11 AOE 107 | . . 6 10 2 4 . . . 8 . . 5 7 12 . 4 2 2 . . . 2 . 11 12 20 Classes Destroyed 30 | . 6 5 1 1 1 2 . . 1 . . . 2 . . . . 1 . . . 2 . 1 3 4 Worker 24 | . 5 5 . 1 . . . . . . . . . . . . 1 . . . 1 . 1 9 1 . Builder 21 | . 2 4 2 1 2 . . . . . . 1 . . . . . . . . . 1 1 5 2 . Tunneler 2 | . 1 1 . . . . . . . . . . . . . . . . . . . . . . . . Hauler 19 | . 1 6 5 4 . . . . . . . . . . . . . 1 . . . . . 2 . . Recycler 16 | . . 1 1 . 5 . . . . . . 4 . . . . . 1 . . . . 1 . 1 2 Carrier 1 | . . . . . . . . . . . . . . . . . . . . . . . . . . 1 Minesweeper 1 | . . . . . . . . . . . . . 1 . . . . . . . . . . . . . Mechanic 8 | . . . . 1 . . . . . . . 2 . . . . . . . . . . . 1 1 3 Operator 9 | . . . 2 1 . . . . . . . 2 . . . . . . . . . 1 2 1 . . Drone 2 | . . . . . . . . . 2 . . . . . . . . . . . . . . . . . Watcher 16 | . 2 1 2 . 2 . . . . . . 1 . . . . 1 . . . . . 2 1 2 2 Swarmer 42 | . . 6 7 3 . . . . 7 . . . 4 6 . 4 4 . . . . . . . . 1 Saboteur 1 | . . . . . . . . . . . . . . . . . . . . . . . . . . 1 Grunt 138 | . 11 15 4 . 4 . . . . 6 . 12 3 5 . . 7 6 . . . 5 10 20 17 13 Brawler 9 | . . 1 . . . . . . . . 1 . 1 2 . . . . . . . . . 2 . 2 Duelist 7 | . . 2 1 . . . . . . . . 1 . . . . . . . . . . . 1 . 2 Protector 1 | . . . . . . . . . . . . . . . . . . . . . . . . . . 1 Researcher 1 | . . . . . . . . . . . . . . . . . . . . . . . . . 1 . Sentry 48 | . . 6 4 8 2 . . . 1 . . 4 . 1 . . 1 9 . 2 1 1 . 3 . 5 Demolisher 1 | . . . . . . . . . . . . . . . . . . . . . . 1 . . . . Hunter 30 | . . . . . . 1 . . . . . 1 . . . . 2 4 . . . 2 8 7 . 5 Programmer 56 | . . . . . 3 1 . . . 2 . 7 1 . . . 4 . . . . 1 14 8 8 7 Heavy 2 | . . . . . . . . . . . . . . . . . . . . . . . . 1 . 1 Behemoth 5 | . . . . . . . . . . . . . . . . . . 2 . . . . . 2 . 1 Cetus Guard 3 | . . . . . . . . . . . . . . . . . . . 3 . . . . . . . Striker 4 | . . . . . . . . . . . . . . . . . . . . . . 1 . . 2 1 Executioner 3 | . . . . . . . . . . . . . . . . . . . . . . . . . . 3 Alpha 7 2 | . . . . . . . . . . . . . . . . . . . . . . . . . 1 1 Fortress 1 | . . . . . . . . . . . . . . . . . . . . . . . . . 1 . Decomposer 2 | . . . . . . . . . 1 . 1 . . . . . . . . . . . . . . . Packrat 2 | . . . . . . . . . . . 2 . . . . . . . . . . . . . . . Samaritan 5 | . . . . . . 1 1 . . . 1 . . . . 2 . . . . . . . . . . Thug 1 | . . . . . . . . . . . . . . . . . . . 1 . . . . . . . Mutant 1 | . . . . . . . . . . . . . 1 . . . . . . . . . . . . . Best Kill Streak 18 | . 5 8 9 5 4 1 . . 4 5 1 5 4 5 . 2 4 3 2 2 2 2 7 18 13 15 Combat Bots Only 12 | . 4 5 4 3 4 1 . . 4 5 1 4 4 5 . 2 4 3 2 2 1 2 7 11 12 12 Max Kills in Single Turn 5 | . 1 2 3 3 3 1 1 . 3 1 1 2 4 4 . 2 1 2 1 1 1 2 1 5 5 5 Gunslinging 1 | . . 1 . . . . . . . . . . . . . . . . . . . . . . . . Exploded 5 | . . 2 3 2 2 . . . 3 . . 1 4 4 . 2 1 1 . . . 2 . 2 5 4 Melee . | . . . . . . . . . . . . . . . . . . . . . . . . . . . Uniques/NPCs Destroyed . | . . . . . . . . . . . . . . . . . . . . . . . . . . . Combat | -11 -10 -9 -8 -8 -7 -7 -7 -7 -6 -6 -6 -5 -5 -5 -5 -4 -4 -4 -4 -4 -4 -3 -3 -2 -2 -2 -------- Run | Yrd Mat Mat Mat Sto Fac Low Low Dat Pro Fac Low Fac Upp Upp Zhi Pro Fac Ext Cet Arc Hub Res Qua Res Tes Sec Hostile Shots Fired 2312 | . 71 89 30 32 82 4 . . 39 172 4 192 25 22 . 2 107 92 5 10 7 70 286 270 211 490 Missed 640 | . 15 20 10 9 28 3 . . 15 48 1 55 7 6 . 1 25 23 . 5 . 23 70 86 47 143 Hits 1672 | . 56 69 20 23 54 1 . . 24 124 3 137 18 16 . 1 82 69 5 5 7 47 216 184 164 347 Melee 34 | . . 5 . . . . . . . . . 1 . 1 . . . . . . . . . 1 . 26 Projectile 1638 | . 56 64 20 23 54 1 . . 24 124 3 136 18 15 . 1 82 69 5 5 7 47 216 183 164 321 AOE 2 | . . . . . . . . . . . . . . . . . . . . . . 1 . . . 1 Critical Strikes 86 | . 1 2 1 . . . . . . 9 . 8 1 1 . . 5 4 2 . . 2 11 10 8 21 Actively Blocked 34 | . . . . . . . . . . . . . . . . . . . 2 . . . 6 10 4 12 Part Disruptions 4 | . . . . . . . . . . . . 1 . . . . . . . . . . 1 . . 2 Damage Taken 33084 | . 773 975 260 352 628 15 . . 290 2379 53 2515 314 379 . 18 1297 1499 149 121 258 1083 3557 4019 4169 7981 Core 3803 | . 243 208 9 60 52 . . . 50 620 15 420 61 . . . 67 110 12 23 . 59 511 101 294 888 Absorbed by Shields 3771 | . . . . . . . . . . . . . . . . . 56 305 51 . . 106 347 1050 193 1663 Reduced by Siege Mode 448 | . . . . . . . . . . . . 9 3 . . . 66 . . . . . 136 102 102 30 Redirected to Core 373 | . . . . . . . . . . . . . . . . . . . . . . . 373 . . . Ignored by Resistances 295 | . . . . . . . . . . . . 167 . . . . 34 94 . . . . . . . . Regen/Repaired (Parts) 2238 | . . . . . . . . . . . . . . . . . . . . . . . . . 1139 1099 Core Remaining (%) 59 | 100 2 48 . 87 . . . . 85 . 25 . . . . 51 . . . . 81 . 52 . . . Volleys Fired 1325 | . 57 85 74 38 56 11 3 . 21 49 18 96 36 27 . 10 36 64 23 8 4 35 137 184 99 154 Largest 3 | . 2 2 2 2 2 2 2 . 2 3 3 3 3 3 . 3 3 3 1 1 3 3 3 1 2 2 Hottest 313 | . 90 112 150 150 130 126 122 . 126 204 205 226 226 226 . 240 290 300 110 110 300 300 300 113 313 294 Shots Fired 2100 | . 114 147 128 73 89 17 7 . 26 72 34 201 75 48 . 25 84 155 23 9 10 97 226 182 100 158 Gun 449 | . 114 70 6 . 19 9 7 . 5 34 13 44 20 19 . . 6 36 . . . 16 31 . . . Cannon 1568 | . . 68 115 72 67 8 . . 14 35 21 150 51 20 . 22 74 111 23 9 10 80 195 167 100 156 Launcher 80 | . . 9 7 1 3 . . . 7 . . 7 4 9 . 3 4 8 . . . 1 . 15 . 2 Special 3 | . . . . . . . . . . 3 . . . . . . . . . . . . . . . . Kinetic 95 | . 34 . . . 15 4 . . 4 19 10 . 1 3 . 5 . . . . . . . . . . Thermal 1446 | . 34 4 101 46 52 9 7 . 5 34 11 194 70 36 . 17 80 147 . . 10 96 205 92 100 96 Explosive 77 | . . 6 7 1 3 . . . 7 . . 7 4 9 . 3 4 8 . . . 1 . 15 . 2 Electromagnetic 479 | . 46 137 20 26 19 4 . . 10 16 13 . . . . . . . 23 9 . . 21 75 . 60 Robot Hit Streak 36 | . 8 20 8 12 8 17 23 . 28 19 6 9 7 5 . 3 36 17 10 8 12 15 27 22 16 12 Robot Miss Streak 12 | . 5 3 4 2 2 . . . 1 3 2 12 5 2 . 5 4 5 3 2 1 3 2 3 3 4 Penetration Max 2 | . . . . . . . . . . . . . . . . . . . . . . . . . . 2 Secondary Targets 4 | . . 3 . . . . . . . 1 . . . . . . . . . . . . . . . . Max Gunslinging Chain 1 | . . 1 . . . . . . . 1 . . . . . . . . . . . . . . . . Capacitor 427 | . . . . . . . . . . . . . . . . . . . 23 9 . . 59 167 44 125 Shots Hit Robots 1263 | . 77 112 48 36 45 11 6 . 13 44 12 100 24 22 . 4 54 123 17 8 5 58 143 142 69 90 Core Hits 773 | . 38 70 30 19 26 7 4 . 17 30 5 71 19 20 . 9 43 58 6 4 2 33 64 101 43 54 Critical Kills 19 | . . . . . . . . . . . . . . . . . . 2 . . . 2 6 2 3 4 Critical Parts Destroyed . | . . . . . . . . . . . . . . . . . . . . . . . . . . . Critical Strikes 31 | . . 3 . . 3 1 . . . 3 . . . . . . . 3 . . . 2 6 3 3 4 Burn 4 | . . . . . 2 1 . . . . . . . . . . . 1 . . . . . . . . Meltdown 19 | . . . . . . . . . . . . . . . . . . 2 . . . 2 6 2 3 4 Blast 2 | . . . . . . . . . . 2 . . . . . . . . . . . . . . . . Corrupt 6 | . . 3 . . 1 . . . . 1 . . . . . . . . . . . . . 1 . . Melee Attacks 9 | . . . . . . . . . . . . . . . . . . . . . . . . . 9 . Kinetic 9 | . . . . . . . . . . . . . . . . . . . . . . . . . 9 . Impact . | . . . . . . . . . . . . . . . . . . . . . . . . . . . Slashing . | . . . . . . . . . . . . . . . . . . . . . . . . . . . Piercing . | . . . . . . . . . . . . . . . . . . . . . . . . . . . Sneak Attacks . | . . . . . . . . . . . . . . . . . . . . . . . . . . . Combat Hostiles . | . . . . . . . . . . . . . . . . . . . . . . . . . . . Follow-up Attacks . | . . . . . . . . . . . . . . . . . . . . . . . . . . . Damage Inflicted 67011 | . 1170 2715 1951 1344 1697 229 102 . 651 1326 361 4142 1432 2000 . 411 2604 5698 580 255 180 2219 5244 10395 7752 12553 Guns 6965 | . 1033 970 21 . 316 147 102 . 70 804 86 817 170 228 . . 89 902 . . . 386 824 . . . Cannons 37155 | . . 1101 1164 950 805 82 . . 153 397 233 2285 527 365 . 200 2256 3470 580 250 175 1586 4261 5639 4376 6300 Explosions 22394 | . 137 644 766 394 576 . . . 428 124 42 1040 735 1391 . 211 227 1290 . . . 240 145 4756 3007 6241 Melee 369 | . . . . . . . . . . . . . . . . . . . . . . . . . 369 . Ramming 128 | . . . . . . . . . . 1 . . . 16 . . 32 36 . 5 5 7 14 . . 12 Kinetic 860 | . 305 . . . . . . . . 100 86 . . . . . . . . . . . . . 369 . Thermal 43297 | . 402 190 910 538 918 147 102 . 70 928 . 3102 697 593 . 200 2345 4372 . . 175 1972 4389 3781 7383 10083 Explosive 12697 | . . 380 690 356 485 . . . 428 . . 1005 735 1391 . 211 227 1290 . . . 240 . 4159 . 1100 Electromagnetic 10029 | . 463 2145 351 450 294 82 . . 153 297 275 35 . . . . . . 580 250 . . 841 2455 . 1358 Impact . | . . . . . . . . . . . . . . . . . . . . . . . . . . . Slashing . | . . . . . . . . . . . . . . . . . . . . . . . . . . . Piercing . | . . . . . . . . . . . . . . . . . . . . . . . . . . . Highest Corruption 20 | . . 2 . . 4 4 4 4 4 3 3 4 6 9 9 9 4 6 11 11 12 3 11 12 15 20 Average Corruption 6 | . . 2 . . 3 4 4 4 4 2 3 1 4 6 9 9 3 5 10 11 11 2 6 5 12 16 Corruption Purged 20 | . . . . . . . . . . . . . . . . . . . . . . . 10 . 10 . Corruption Blocked . | . . . . . . . . . . . . . . . . . . . . . . . . . . . Effects 630 | . . 17 . . 11 7 9 2 13 11 29 13 44 33 12 52 11 74 19 12 16 20 78 20 74 53 Message Errors 168 | . . 5 . . 1 1 5 2 2 5 10 2 11 10 3 12 4 18 6 3 5 6 20 . 19 18 Matter Fused 162 | . . 4 . . 3 2 1 . 5 3 8 3 12 5 3 12 2 23 9 2 2 2 22 6 21 12 Heat Flow Errors 68 | . . . . . 3 . 2 . 2 . 1 1 8 2 2 9 2 9 . 2 2 2 5 1 9 6 Energy Discharges 64 | . . 2 . . 2 1 . . 2 1 3 1 5 4 1 4 . 6 . 2 3 1 7 2 7 10 Parts Rejected 6 | . . . . . . . . . . . . 1 . . . . . 2 . . . . . . 2 1 Parts Fused 9 | . . . . . . . . . . 1 . 1 1 1 1 . . 2 1 . . . . 1 . . Data Loss (minor) 70 | . . 3 . . . 1 . . 1 . 3 1 4 4 1 5 1 5 3 2 1 6 16 5 8 . Data Loss (major) 24 | . . 1 . . 1 1 . . . . 1 2 . 2 1 2 . 1 . . 1 2 3 1 4 1 Misfires 27 | . . . . . 1 . 1 . . 1 3 . . 3 . 5 2 2 . 1 . . 3 1 . 4 Alerts 9 | . . . . . . . . . . . . . 2 1 . 2 . 3 . . . . 1 . . . Weapon Failures 23 | . . 2 . . . 1 . . 1 . . 1 1 1 . 1 . 3 . . 2 1 1 3 4 1 Overload Shots 28 | . . . . . . . . . . . . 2 1 8 . . 12 3 . . . 1 1 . . . Effects 1 | . . . . . . . . . . . . . . . . . 1 . . . . . . . . . Heat Surge 1 | . . . . . . . . . . . . . . . . . 1 . . . . . . . . . Overflow Damage 3195 | . . 47 59 59 42 . . . . 1 42 33 62 67 . 32 25 99 . . . 17 91 200 1012 1307 Projectiles 1789 | . . 41 . 3 24 . . . . 1 42 31 . . . 32 18 73 . . . 17 91 97 681 638 Explosions 1393 | . . 6 59 56 18 . . . . . . 2 62 67 . . . 20 . . . . . 103 331 669 Melee 13 | . . . . . . . . . . . . . . . . . 7 6 . . . . . . . . Knockbacks 2 | . . . . . . . . . . 1 . . . . . . 1 . . . . . . . . . Impact 1 | . . . . . . . . . . . . . . . . . 1 . . . . . . . . . Kinetic 1 | . . . . . . . . . . 1 . . . . . . . . . . . . . . . . Secondary . | . . . . . . . . . . . . . . . . . . . . . . . . . . . Self-Inflicted Damage 1155 | . 38 47 . 62 78 . . . 22 48 . 12 27 . . . . 121 . . . . . 28 148 524 Shots 23 | . 1 2 . 1 2 . . . 2 1 . 1 1 . . . . 3 . . . . . 1 3 5 Rammed 10 | . . . . . . . . . . 1 . . . 1 . . 1 1 . 1 1 1 1 . . 2 Targets Rammed 12 | . . . . . . . . . . 1 . . . 1 . . 2 1 . 1 2 1 1 . . 2 Kicked . | . . . . . . . . . . . . . . . . . . . . . . . . . . . Crushed 2 | . . . . . . . . . . . . . . . . . 1 . . . 1 . . . . . Highest Temperature 375 | . 265 108 164 71 152 . 137 . 149 352 305 310 280 283 136 317 372 216 184 185 108 375 196 373 206 281 Average Temperature 91 | . 66 41 57 38 71 . 73 . 71 112 62 119 106 107 60 115 129 90 88 78 46 84 44 117 86 71 Received Heat Transfer 4980 | . 432 291 117 81 99 . . . 30 1031 18 630 72 99 . . 366 212 . 9 27 117 199 222 470 458 Effects 8 | . . . . . . . . . . . 2 . 1 1 . 3 . . . . . 1 . . . . Shutdowns 1 | . . . . . . . . . . . . . . . . . . . . . . 1 . . . . Interference 7 | . . . . . . . . . . . 2 . 1 1 . 3 . . . . . . . . . . Siege Activations 30 | . . . . . . . . . . . . 2 2 2 . 1 4 . . . . 1 7 4 2 5 Total Turns 406 | . . . . . . . . . . . . 30 81 11 . 6 100 . . . . 2 69 35 39 33 Longest Duration 61 | . . . . . . . . . . . . 16 61 6 . 6 30 . . . . 2 19 13 23 19 Martial Activations . | . . . . . . . . . . . . . . . . . . . . . . . . . . . Shielding Activations . | . . . . . . . . . . . . . . . . . . . . . . . . . . . Robots Disrupted 2 | . . . . . . . . . . . . . . . . . . . 1 1 . . . . . . Combat Hostiles 1 | . . . . . . . . . . . . . . . . . . . 1 . . . . . . . Robots Corrupted 34 | . 1 1 2 . . . . . . . 1 . . . . . . 1 2 1 . . 5 13 . 7 Combat Hostiles 32 | . 1 1 2 . . . . . . . . . . . . . . . 2 1 . . 5 13 . 7 Parts Fried 77 | . . 11 3 3 3 . . . 1 4 3 1 . . . . . 3 3 . . . 7 21 . 14 Impact Corruptions 2 | . . . . . . . . . . . . . . . . . 1 1 . . . . . . . . Robots Melted 29 | . . . 1 . . . . . . 1 . 1 1 2 . . . 4 . . . 2 6 2 3 6 Combat Hostiles 27 | . . . . . . . . . . 1 . 1 1 2 . . . 4 . . . 1 6 2 3 6 Parts Melted 128 | . 1 . 3 3 14 . 1 . . 6 2 8 3 2 . 1 4 11 . . 1 8 20 5 14 21 Heat Transferred 42801 | . 825 300 1345 740 1469 370 222 . 148 1850 . 4063 847 707 . 200 2568 5051 . . 185 2201 4651 3199 5529 6331 Parts Sabotaged . | . . . . . . . . . . . . . . . . . . . . . . . . . . . Parts Stolen . | . . . . . . . . . . . . . . . . . . . . . . . . . . . Parts Stripped 18 | . . . . . . . . . . . . . . . . . . . . . . . . . 18 . Power Chain Reactions 17 | . 2 6 1 1 2 . . . . 1 1 . . . . . . . . . . . 1 2 . . Alert | -11 -10 -9 -8 -8 -7 -7 -7 -7 -6 -6 -6 -5 -5 -5 -5 -4 -4 -4 -4 -4 -4 -3 -3 -2 -2 -2 ------- Run | Yrd Mat Mat Mat Sto Fac Low Low Dat Pro Fac Low Fac Upp Upp Zhi Pro Fac Ext Cet Arc Hub Res Qua Res Tes Sec Maximum Alert Level 5 | . . 1 1 1 . . . . . . . 3 . . . . . 3 2 1 2 1 2 4 4 5 Low Security (%) 52 | 100 100 67 48 16 100 . . . . 100 . 73 . . . . 100 58 . . 73 26 56 14 . . Level 1 23 | . . 32 51 83 . . . . . . . . . . . . . 14 . 100 11 73 37 40 . . Level 2 7 | . . . . . . . . . . . . 21 . . . . . 11 100 . 14 . 5 17 1 . Level 3 8 | . . . . . . . . . . . . 3 . . . . . 15 . . . . . 17 58 28 Level 4 5 | . . . . . . . . . . . . . . . . . . . . . . . . 9 39 39 Level 5 . | . . . . . . . . . . . . . . . . . . . . . . . . . . 4 High Security 1 | . . . . . . . . . . . . . . . . . . . . . . . . . . 27 Max Security . | . . . . . . . . . . . . . . . . . . . . . . . . . . . Peak Influence 2344 | . 77 385 387 279 155 . . . . 70 . 735 . . . . 187 931 598 376 463 336 463 1346 1389 2344 Initial 771 | . . . 150 114 91 . . . . 70 . . . . . . 25 68 514 204 86 235 96 260 738 771 Average 317 | . 25 162 224 221 49 . . . . 11 . 168 . . . . 112 271 510 305 155 237 164 503 1035 1360 Influence Increases 15623 | . 373 1043 630 537 462 60 5 . 190 334 105 1133 249 435 . 120 535 1784 350 192 553 525 1090 1553 1368 1997 Destroy 0b10 Robot/C 7740 | . 220 600 320 220 180 40 . . 160 160 20 500 200 280 . 80 360 740 160 80 180 240 640 880 600 880 Destroy 0b10 Robot/NC 655 | . 55 90 60 40 45 . 5 . 10 . . 50 10 . . . 10 40 10 . 10 15 35 95 35 40 Destroy Leader 1554 | . 56 154 94 98 64 20 . . 20 30 10 122 30 20 . 10 62 74 . . 40 42 114 206 84 204 Allied During Kill 1192 | . . . . . . . . . . . . . 9 . . . . 671 170 80 224 38 . . . . Successful Hack 287 | . 5 53 50 16 . . . . . 5 . 55 . . . . 16 4 . . 19 . 31 . 33 . Select Force Hacks 50 | . . . . . . . . . . . . . . . . . . . . . 50 . . . . . Disable Machine 1155 | . 15 45 30 105 105 . . . . 60 . 150 . . . . 15 30 . 30 . . 135 45 180 210 Anti-Garrison Action 150 | . . . . . . . . . . . . . . . . . . . . . . 150 . . . . Destroy Structure 2315 | . 7 71 61 58 68 . . . . 19 . 226 . . . . 72 210 10 2 30 40 120 312 376 633 Lose Combat Pursuer 525 | . 15 30 15 . . . . . . 60 75 30 . 135 . 30 . 15 . . . . 15 15 60 30 Influence Decreases 13379 | . 373 686 715 608 530 193 5 . 78 446 105 402 883 366 166 78 436 1006 759 456 350 802 799 703 1308 1126 Entered New Map 3655 | . . . 207 158 110 50 . . . 42 . . 272 19 166 . 17 73 405 306 160 214 76 203 575 602 Time Decay 8241 | . 348 456 498 440 420 143 5 . 78 278 105 310 601 300 . 78 369 650 294 150 170 518 693 380 583 374 Lost Part 933 | . 25 80 10 10 . . . . . 126 . 92 10 20 . . 50 70 . . . 10 30 120 130 150 Lost Ally 400 | . . . . . . . . . . . . . . 27 . . . 213 60 . 20 60 . . 20 . Purge Threat 150 | . . 150 . . . . . . . . . . . . . . . . . . . . . . . . Squads Dispatched 86 | . 2 3 1 2 5 . . . . 6 . 9 . 1 . . 5 3 . . 3 8 8 11 8 11 Investigation 15 | . 1 . 1 . 1 . . . . 2 . 3 . . . . 1 1 . . 1 3 . 1 . . Extermination 26 | . . . . . 3 . . . . 3 . 4 . . . . 2 . . . 1 . 7 2 3 1 Reinforcement 26 | . 1 3 . . 1 . . . . 1 . 1 . . . . 2 2 . . 1 5 1 4 3 1 Assault 14 | . . . . . . . . . . . . 1 . 1 . . . . . . . . . 1 2 9 Garrison 5 | . . . . 2 . . . . . . . . . . . . . . . . . . . 3 . . Intercept . | . . . . . . . . . . . . . . . . . . . . . . . . . . . Searches Triggered . | . . . . . . . . . . . . . . . . . . . . . . . . . . . Data Miner Redirects 6 | . . . . . . . . . . 2 . . . . . . 1 1 . . . . . 2 . . Construction Impeded 7 | . . 1 . . 1 . . . . . . 1 . . . . . 1 . . 1 . . 1 1 . Haulers Reinforced 4 | . . . . . . . . . . . . . . . . . 1 . . . . 2 . 1 . . Active Scanning Responses . | . . . . . . . . . . . . . . . . . . . . . . . . . . . Cargo Convoy Interrupts . | . . . . . . . . . . . . . . . . . . . . . . . . . . . Stealth | -11 -10 -9 -8 -8 -7 -7 -7 -7 -6 -6 -6 -5 -5 -5 -5 -4 -4 -4 -4 -4 -4 -3 -3 -2 -2 -2 --------- Run | Yrd Mat Mat Mat Sto Fac Low Low Dat Pro Fac Low Fac Upp Upp Zhi Pro Fac Ext Cet Arc Hub Res Qua Res Tes Sec Distress Signals 28 | . 1 3 1 . . . . . . . . 1 . . . . . 2 2 . 1 8 2 3 2 2 Communications Jammed 19 | . . . . . . . . . . . . 1 . . . . . . . . . . 3 . 15 . Distress Signals 19 | . . . . . . . . . . . . 1 . . . . . . . . . . 3 . 15 . Times Spotted 532 | . 16 46 26 11 13 2 . . 8 12 7 34 11 12 . 2 22 36 12 5 5 27 44 60 35 86 Peak Tracking Total 23 | . 3 8 4 3 4 1 . . 4 6 4 7 4 9 . 4 4 5 5 2 6 4 5 8 14 23 Tactical Retreats 21 | . 1 2 1 . . . . . . 4 2 1 . 3 . 1 . 1 . . . . 1 1 1 2 Traps | -11 -10 -9 -8 -8 -7 -7 -7 -7 -6 -6 -6 -5 -5 -5 -5 -4 -4 -4 -4 -4 -4 -3 -3 -2 -2 -2 ------- Run | Yrd Mat Mat Mat Sto Fac Low Low Dat Pro Fac Low Fac Upp Upp Zhi Pro Fac Ext Cet Arc Hub Res Qua Res Tes Sec Traps Triggered 21 | . 3 3 . . . . . . . 2 . 1 1 . . . 1 2 . . . 3 2 . 1 2 Indirectly . | . . . . . . . . . . . . . . . . . . . . . . . . . . . Trap Hack Attempts . | . . . . . . . . . . . . . . . . . . . . . . . . . . . Triggered . | . . . . . . . . . . . . . . . . . . . . . . . . . . . Disarmed . | . . . . . . . . . . . . . . . . . . . . . . . . . . . Reprogrammed 1 | . . . . . . . . . . . . 1 . . . . . . . . . . . . . . Reused . | . . . . . . . . . . . . . . . . . . . . . . . . . . . Traps Extracted . | . . . . . . . . . . . . . . . . . . . . . . . . . . . Installed . | . . . . . . . . . . . . . . . . . . . . . . . . . . . Triggered . | . . . . . . . . . . . . . . . . . . . . . . . . . . . Machines | -11 -10 -9 -8 -8 -7 -7 -7 -7 -6 -6 -6 -5 -5 -5 -5 -4 -4 -4 -4 -4 -4 -3 -3 -2 -2 -2 ---------- Run | Yrd Mat Mat Mat Sto Fac Low Low Dat Pro Fac Low Fac Upp Upp Zhi Pro Fac Ext Cet Arc Hub Res Qua Res Tes Sec Machines Disabled 88 | . 1 4 2 7 7 . . . 1 4 . 10 . 2 . . 1 4 . 2 . 1 9 3 15 15 Max in Single Turn 4 | . 1 2 1 2 2 . . . 1 1 . 4 . 1 . . 1 2 . . . 1 1 1 3 2 Garrison Access 5 | . . . . 1 1 . . . . . . . . . . . . . . . . 2 1 . . . Network Hub 1 | . . . . . . . . . . . . . . . . . . . . . 1 . . . . . Machines Repaired . | . . . . . . . . . . . . . . . . . . . . . . . . . . . Machines Dismantled 2 | . . . . . . . . . . . . 2 . . . . . . . . . . . . . . Machines Sabotaged 1 | . . . . . . . . . . . . . . . . . . . . . 1 . . . . . Overloaded Fab Kills . | . . . . . . . . . . . . . . . . . . . . . . . . . . . Hacking | -11 -10 -9 -8 -8 -7 -7 -7 -7 -6 -6 -6 -5 -5 -5 -5 -4 -4 -4 -4 -4 -4 -3 -3 -2 -2 -2 --------- Run | Yrd Mat Mat Mat Sto Fac Low Low Dat Pro Fac Low Fac Upp Upp Zhi Pro Fac Ext Cet Arc Hub Res Qua Res Tes Sec Machines Accessed 100 | . 2 7 7 6 7 1 . 4 . 5 . 13 . 1 5 . 4 5 1 . 3 4 18 1 3 3 Terminals 67 | . 2 6 7 4 5 1 . . . 4 . 7 . . . . 2 5 1 . 3 1 14 1 3 1 Fabricators 3 | . . . . . . . . . . 1 . 2 . . . . . . . . . . . . . . Repair Stations 5 | . . 1 . . . . . . . . . 2 . . . . . . . . . . 2 . . . Recycling Units 6 | . . . . 1 1 . . . . . . 2 . . . . 1 . . . . 1 . . . . Scanalyzers 3 | . . . . . . . . . . . . . . . . . 1 . . . . . 1 . . 1 Garrison Access 6 | . . . . 1 1 . . . . . . . . . . . . . . . . 2 1 . . 1 Total Hacks 296 | . 9 25 29 15 13 1 . 29 . 7 . 37 . 1 18 . 10 10 1 . 8 9 52 2 14 6 Successful 153 | . 3 14 20 10 7 1 . 29 . 2 . 15 . 1 18 . 4 2 . . 4 3 13 . 7 . Failed 143 | . 6 11 9 5 6 . . . . 5 . 22 . . . . 6 8 1 . 4 6 39 2 7 6 Catastrophic 37 | . . 3 2 1 2 . . . . 2 . 6 . . . . 1 1 1 . 1 3 7 1 3 3 Database Lockouts . | . . . . . . . . . . . . . . . . . . . . . . . . . . . Manual 143 | . 10 21 26 11 5 . . . 1 3 . 19 . . . . 1 6 1 . 4 2 25 . 8 . Terminals 203 | . 9 24 29 11 9 1 . . . 6 . 25 . . . . 4 10 1 . 8 4 43 2 14 3 Fabricators 5 | . . . . . . . . . . 1 . 4 . . . . . . . . . . . . . . Repair Stations 9 | . . 1 . . . . . . . . . 3 . . . . . . . . . . 5 . . . Recycling Units 13 | . . . . 2 3 . . . . . . 5 . . . . 1 . . . . 2 . . . . Scanalyzers 9 | . . . . . . . . . . . . . . . . . 5 . . . . . 3 . . 1 Garrison Access 9 | . . . . 2 1 . . . . . . . . . . . . . . . . 3 1 . . 2 Terminal Hacks 75 | . . 3 5 . 2 1 . 29 . 2 . 4 . 1 18 . . . . . 2 . 4 . 4 . Record 21 | . . . . . . 1 . 11 . . . . . 1 6 . . . . . . . 2 . . . Part Schematic 16 | . . . . . . . . 12 . . . . . . 4 . . . . . . . . . . . Robot Schematic 3 | . . . . . . . . 3 . . . . . . . . . . . . . . . . . . Robot Analysis 4 | . . . . . . . . . . . . . . . 4 . . . . . . . . . . . Prototype ID Bank 9 | . . . 1 . . . . 3 . . . . . . 4 . . . . . . . . . 1 . Open DSF 2 | . . . . . . . . . . 2 . . . . . . . . . . . . . . . . Level Access Points 1 | . . . . . . . . . . . . . . . . . . . . . 1 . . . . . Branch Access Points 2 | . . . . . . . . . . . . 1 . . . . . . . . . . 1 . . . Terminal Index 3 | . . 1 1 . . . . . . . . 1 . . . . . . . . . . . . . . Alert Level 4 | . . . 1 . 1 . . . . . . . . . . . . . . . . . . . 2 . Unreport Threat 1 | . . 1 . . . . . . . . . . . . . . . . . . . . . . . . Locate Traps 1 | . . . . . 1 . . . . . . . . . . . . . . . . . . . . . Reprogram Traps 1 | . . . . . . . . . . . . 1 . . . . . . . . . . . . . . Dispatch Records 2 | . . . . . . . . . . . . . . . . . . . . . . . 1 . 1 . Hauler Manifests 1 | . . 1 . . . . . . . . . . . . . . . . . . . . . . . . Registered Components 1 | . . . 1 . . . . . . . . . . . . . . . . . . . . . . . Zone Layout 3 | . . . 1 . . . . . . . . 1 . . . . . . . . 1 . . . . . Fabricator Hacks 3 | . . . . . . . . . . . . 3 . . . . . . . . . . . . . . Load Schematic 1 | . . . . . . . . . . . . 1 . . . . . . . . . . . . . . Build 2 | . . . . . . . . . . . . 2 . . . . . . . . . . . . . . Repair Station Hacks 2 | . . . . . . . . . . . . 1 . . . . . . . . . . 1 . . . Scan Component 1 | . . . . . . . . . . . . . . . . . . . . . . . 1 . . . Refit 1 | . . . . . . . . . . . . 1 . . . . . . . . . . . . . . Recycling Unit Hacks 4 | . . . . 1 1 . . . . . . 1 . . . . . . . . . 1 . . . . Retrieve Components 4 | . . . . 1 1 . . . . . . 1 . . . . . . . . . 1 . . . . Scanalyzer 7 | . . . . . . . . . . . . . . . . . 4 . . . . . 3 . . . Insert Component 7 | . . . . . . . . . . . . . . . . . 4 . . . . . 3 . . . Garrison Access Hacks 4 | . . . . 1 1 . . . . . . . . . . . . . . . . 1 1 . . . Seal Access 4 | . . . . 1 1 . . . . . . . . . . . . . . . . 1 1 . . . Unauthorized Hacks 58 | . 3 11 15 8 3 . . . . . . 6 . . . . . 2 . . 2 1 4 . 3 . Terminals 52 | . 3 10 15 7 1 . . . . . . 5 . . . . . 2 . . 2 . 4 . 3 . Track 2 | . . . 1 . . . . . . . . . . . . . . . . . . . 1 . . . Assimilate 1 | . . . 1 . . . . . . . . . . . . . . . . . . . . . . . Botnet 30 | . 2 4 7 3 1 . . . . . . 5 . . . . . 2 . . 1 . 3 . 2 . Operators 2 | . . 1 . . . . . . . . . . . . . . . . . . . . . . 1 . Skim 16 | . 1 5 6 4 . . . . . . . . . . . . . . . . . . . . . . Sabotage 1 | . . . . . . . . . . . . . . . . . . . . . 1 . . . . . Fabricators 1 | . . . . . . . . . . . . 1 . . . . . . . . . . . . . . Prioritize 1 | . . . . . . . . . . . . 1 . . . . . . . . . . . . . . Repair Stations 1 | . . 1 . . . . . . . . . . . . . . . . . . . . . . . . Mechanics 1 | . . 1 . . . . . . . . . . . . . . . . . . . . . . . . Recycling Units 4 | . . . . 1 2 . . . . . . . . . . . . . . . . 1 . . . . Recyclers 2 | . . . . . 1 . . . . . . . . . . . . . . . . 1 . . . . Mask 2 | . . . . 1 1 . . . . . . . . . . . . . . . . . . . . . Scanalyzers . | . . . . . . . . . . . . . . . . . . . . . . . . . . . Garrison Access . | . . . . . . . . . . . . . . . . . . . . . . . . . . . Data Cores Recovered 6 | . . . 1 1 . . . . . . . 2 . . . . . . . . . 1 1 . . . Used 2 | . . . 1 . . . . . . . . 1 . . . . . . . . . . . . . . Hacking Detections 75 | . 2 6 7 5 5 . . . . 3 . 12 . . . . 4 5 1 . 3 2 13 1 3 3 Full Trace Events 11 | . 1 . 1 . 1 . . . . . . 3 . . . . 1 1 . . . 2 . 1 . . Feedback Events . | . . . . . . . . . . . . . . . . . . . . . . . . . . . Feedback Blocked . | . . . . . . . . . . . . . . . . . . . . . . . . . . . Robot Schematics Acquired 3 | . . . . . . . . 3 . . . . . . . . . . . . . . . . . . Robots Built . | . . . . . . . . . . . . . . . . . . . . . . . . . . . Authchips . | . . . . . . . . . . . . . . . . . . . . . . . . . . . Time . | . . . . . . . . . . . . . . . . . . . . . . . . . . . Total Robot Build Rating . | . . . . . . . . . . . . . . . . . . . . . . . . . . . Part Schematics Acquired 17 | . . . . . . . . 12 . . . . . . 4 . . . . . . . . . 1 . Parts Built 3 | . . . . . . . . . . . . 3 . . . . . . . . . . . . . . Authchips . | . . . . . . . . . . . . . . . . . . . . . . . . . . . Time 293 | . . . . . . . . . . . . 293 . . . . . . . . . . . . . . Total Part Build Rating 19 | . . . . . . . . . . . . 19 . . . . . . . . . . . . . . Parts Repaired . | . . . . . . . . . . . . . . . . . . . . . . . . . . . Time . | . . . . . . . . . . . . . . . . . . . . . . . . . . . Parts Recycled . | . . . . . . . . . . . . . . . . . . . . . . . . . . . Recycled Matter . | . . . . . . . . . . . . . . . . . . . . . . . . . . . Retrieved Matter . | . . . . . . . . . . . . . . . . . . . . . . . . . . . Retrieved Components 31 | . . . . 9 2 . . . . . . 10 . . . . . . . . . 10 . . . . Parts Scanalyzed . | . . . . . . . . . . . . . . . . . . . . . . . . . . . Part Schematics Acquired . | . . . . . . . . . . . . . . . . . . . . . . . . . . . Parts Damaged . | . . . . . . . . . . . . . . . . . . . . . . . . . . . Bothacking | -11 -10 -9 -8 -8 -7 -7 -7 -7 -6 -6 -6 -5 -5 -5 -5 -4 -4 -4 -4 -4 -4 -3 -3 -2 -2 -2 ------------ Run | Yrd Mat Mat Mat Sto Fac Low Low Dat Pro Fac Low Fac Upp Upp Zhi Pro Fac Ext Cet Arc Hub Res Qua Res Tes Sec Used RIF Installer . | . . . . . . . . . . . . . . . . . . . . . . . . . . . Robots Hacked . | . . . . . . . . . . . . . . . . . . . . . . . . . . . Non-combat . | . . . . . . . . . . . . . . . . . . . . . . . . . . . Combat . | . . . . . . . . . . . . . . . . . . . . . . . . . . . Robot Hacks Applied . | . . . . . . . . . . . . . . . . . . . . . . . . . . . Relay Couplers Released 3 | . . . . . 2 . . . . . . . . . . . . . . . . 1 . . . . Machine Destruction 3 | . . . . . 2 . . . . . . . . . . . . . . . . 1 . . . . Fabnet Peak Effective % . | . . . . . . . . . . . . . . . . . . . . . . . . . . . Robots Rewired 26 | . . . . . . . . . . . . . 4 1 . . . 21 . . . . . . . . Allies Hacked . | . . . . . . . . . . . . . . . . . . . . . . . . . . . Hacks Repelled . | . . . . . . . . . . . . . . . . . . . . . . . . . . . Allies | -11 -10 -9 -8 -8 -7 -7 -7 -7 -6 -6 -6 -5 -5 -5 -5 -4 -4 -4 -4 -4 -4 -3 -3 -2 -2 -2 -------- Run | Yrd Mat Mat Mat Sto Fac Low Low Dat Pro Fac Low Fac Upp Upp Zhi Pro Fac Ext Cet Arc Hub Res Qua Res Tes Sec Total Allies 41 | . . . . . . . . . . . 1 . 4 1 . . . 30 5 . . . . . . . Largest Group 14 | . . . . . . . . . . . 1 . 4 2 . . . 14 14 14 13 3 . . . . Highest-Rated Group 958 | . . . . . . . . . . . 165 . 117 59 . . . 697 958 946 794 174 . . . . Highest-Rated Ally 165 | . . . . . . . . . . . 165 . 30 30 . . . 159 159 152 96 96 . . . . Total Orders 1 | . . . . . . . . . . . . . . . . . . . . . . . . . 1 . EXPLORE 1 | . . . . . . . . . . . . . . . . . . . . . . . . . 1 . Ally Attacks 334 | . . . . . . . . . . . . . 13 5 . . . 159 59 13 69 16 . . . . Total Damage 8895 | . . . . . . . . . . . . . 132 . . . . 4229 1735 482 2013 304 . . . . Kills 45 | . . . . . . . . . . . . . 2 . . . . 23 7 2 9 2 . . . . Allies Corrupted 3 | . . . . . . . . . . . . . . . . . . 2 . . . 1 . . . . Allies Melted . | . . . . . . . . . . . . . . . . . . . . . . . . . . . Intel | -11 -10 -9 -8 -8 -7 -7 -7 -7 -6 -6 -6 -5 -5 -5 -5 -4 -4 -4 -4 -4 -4 -3 -3 -2 -2 -2 ------- Run | Yrd Mat Mat Mat Sto Fac Low Low Dat Pro Fac Low Fac Upp Upp Zhi Pro Fac Ext Cet Arc Hub Res Qua Res Tes Sec Active Infowar (turns) 20381 | . 672 1013 1205 1002 1412 363 379 115 476 1124 1381 1989 1768 1176 321 1368 681 205 . 119 250 212 1843 223 1084 . Sensors 15530 | . . . 1205 1002 1399 363 379 115 476 1123 1381 1880 1757 1152 321 1368 624 205 . 119 250 72 . . 339 . Structural 1011 | . . 1011 . . . . . . . . . . . . . . . . . . . . . . . . Seismic 1005 | . 672 320 . . 13 . . . . . . . . . . . . . . . . . . . . . Decoding 68 | . . . . . . . . . . . . . . . . . 68 . . . . . . . . . Jamming 5319 | . . . . . . . . . . 1 . 1298 537 384 . . . . . . . 140 1843 223 893 . Robot Analysis Total 4 | . . . . . . . . . . . . . . . 4 . . . . . . . . . . . Derelict Logs Recovered 8 | . . . . . . 1 1 . 1 . 1 . 2 . . 2 . . . . . . . . . . Drone Launches 2 | . . . . . . . . . . . . . . . . . . . . . . . . . 2 . Drone Recoveries . | . . . . . . . . . . . . . . . . . . . . . . . . . . . Decoded 0b10 Intel 2 | . . . . . . . . . . . . . . . . . 2 . . . . . . . . . Traps 1 | . . . . . . . . . . . . . . . . . 1 . . . . . . . . . Emergency Access 1 | . . . . . . . . . . . . . . . . . 1 . . . . . . . . . Exploration | -11 -10 -9 -8 -8 -7 -7 -7 -7 -6 -6 -6 -5 -5 -5 -5 -4 -4 -4 -4 -4 -4 -3 -3 -2 -2 -2 ------------- Run | Yrd Mat Mat Mat Sto Fac Low Low Dat Pro Fac Low Fac Upp Upp Zhi Pro Fac Ext Cet Arc Hub Res Qua Res Tes Sec Turns Passed 30933 | 3 1041 1472 1336 1092 1587 398 379 118 538 1390 1596 2254 1925 1245 347 1433 880 2392 650 300 351 1431 2858 896 1806 1215 Spaces Moved 14996 | 3 400 774 660 529 811 286 309 93 369 962 882 1255 841 533 190 550 321 811 188 98 138 805 1547 302 792 547 Core 80 | . 1 . . . . . . . . 78 . . . . . . . . . . . . . . . 1 Treads 7179 | . 37 . . . 56 . . . . . . 36 841 533 190 550 321 811 188 98 138 805 1547 278 204 546 Legs 149 | 3 146 . . . . . . . . . . . . . . . . . . . . . . . . . Wheels 7424 | . 216 774 660 529 755 286 309 93 369 720 882 1219 . . . . . . . . . . . 24 588 . Hover 164 | . . . . . . . . . . 164 . . . . . . . . . . . . . . . . Flight . | . . . . . . . . . . . . . . . . . . . . . . . . . . . Fastest Speed 50 | 120 120 135 145 140 120 120 120 120 120 50 123 115 160 160 160 240 162 240 242 242 242 148 148 151 150 100 Average Speed 162 | 120 197 142 156 144 160 120 120 120 120 116 124 125 195 187 163 240 187 244 242 242 242 149 150 190 172 160 Slowest Speed 1450 | 120 1450 215 230 155 243 120 120 120 120 190 130 240 240 240 240 240 247 247 242 242 242 162 151 330 335 295 Overloaded Moves . | . . . . . . . . . . . . . . . . . . . . . . . . . . . Propulsion Burnouts . | . . . . . . . . . . . . . . . . . . . . . . . . . . . Robots Hopped . | . . . . . . . . . . . . . . . . . . . . . . . . . . . Potential Cave-ins . | . . . . . . . . . . . . . . . . . . . . . . . . . . . Cave-ins Triggered . | . . . . . . . . . . . . . . . . . . . . . . . . . . . Teleports 3 | . . . . . . . . . . . . . . . . . . . . . . . 1 1 . 1 Exploration Rate (%) 52 | 2 48 66 71 63 27 50 50 69 56 17 59 31 85 64 60 71 11 87 68 74 23 26 97 16 95 43 Regions Visited 26 Branch Regions 17 Pre-discovered Areas 8 | . . . . 1 . 1 . 1 . . . . 1 . 3 1 . . . . . . . . . . Known Exits Taken 17 | . . 1 1 1 1 1 1 1 1 1 1 1 1 1 1 1 1 . . . 1 . . . . . Unknown Exits Taken 9 | 1 1 . . . . . . . . . . . . . . . . 1 1 1 . 1 1 1 1 . Scrap Searched 12 | . . . . . . 1 2 . 2 . 1 . 1 2 . 3 . . . . . . . . . . Spaces Dug 224 | . . 2 11 4 6 1 . . 13 6 1 26 3 36 . 29 7 38 . . 2 . 20 5 10 4 Terrain Destroyed 1555 | . 4 73 70 62 78 2 . . 54 21 6 122 34 125 . 63 40 139 . . 2 20 58 130 151 301 Melee . | . . . . . . . . . . . . . . . . . . . . . . . . . . . Projectile 349 | . . 4 47 16 6 2 . . 2 14 6 60 14 10 . 11 11 11 . . 2 8 48 15 24 38 AOE 1206 | . 4 69 23 46 72 . . . 52 7 . 62 20 115 . 52 29 128 . . . 12 10 115 127 263 Terrain Rammed . | . . . . . . . . . . . . . . . . . . . . . . . . . . . Walls Destroyed . | . . . . . . . . . . . . . . . . . . . . . . . . . . . Machines Disabled . | . . . . . . . . . . . . . . . . . . . . . . . . . . . Actions | -11 -10 -9 -8 -8 -7 -7 -7 -7 -6 -6 -6 -5 -5 -5 -5 -4 -4 -4 -4 -4 -4 -3 -3 -2 -2 -2 --------- Run | Yrd Mat Mat Mat Sto Fac Low Low Dat Pro Fac Low Fac Upp Upp Zhi Pro Fac Ext Cet Arc Hub Res Qua Res Tes Sec Total 19961 | 2 529 1008 840 784 1003 317 311 98 432 1139 1347 1689 1031 724 231 635 503 1116 390 162 144 958 1960 605 1164 839 Wait 1978 | . 34 11 27 175 53 9 . . 25 25 430 158 91 128 . 63 85 42 153 42 . 23 185 63 89 67 Move 14970 | 2 399 773 659 528 810 285 308 92 368 961 881 1254 840 532 189 549 320 810 187 97 137 804 1546 301 791 547 Hop . | . . . . . . . . . . . . . . . . . . . . . . . . . . . Pick Up 296 | . 13 46 17 5 16 . . . 2 36 2 25 3 7 7 2 15 10 10 3 . 18 16 10 26 7 Fast Attach 172 | . 12 9 4 1 5 . . 2 . 15 3 11 1 . 7 . . 14 1 . . 12 11 9 46 9 Attach 129 | . 3 15 2 1 3 . . . . 14 4 11 3 3 3 . 9 6 . 4 . 5 5 10 18 10 Detach 74 | . 3 4 . . 2 . . . . 5 2 6 3 . 1 . 2 7 1 1 . 5 3 4 20 5 Swap 408 | . 7 24 31 25 37 12 . 2 13 14 7 45 19 17 2 9 24 20 2 3 1 31 26 13 12 12 Drop 349 | . 1 41 26 11 21 . . 2 3 19 . 29 1 4 14 2 10 18 13 3 . 24 30 11 54 12 Fire 1325 | . 57 85 74 38 56 11 3 . 21 49 18 96 36 27 . 10 36 64 23 8 4 35 137 184 99 154 Melee 9 | . . . . . . . . . . . . . . . . . . . . . . . . . 9 . Ram 1 | . . . . . . . . . . 1 . . . . . . . . . . . . . . . . Kick . | . . . . . . . . . . . . . . . . . . . . . . . . . . . Crush 11 | . . . . . . . . . . . . . . 1 . . 2 1 . 1 2 1 1 . . 2 Escape Stasis 19 | . . . . . . . . . . . . . . . . . . 5 . . . . . . . 14 Rewire 166 | . . . . . . . . . . . . . 34 5 8 . . 119 . . . . . . . . Trap . | . . . . . . . . . . . . . . . . . . . . . . . . . . . Miscellaneous 54 | . . . . . . . . . . . . 54 . . . . . . . . . . . . . . Route ------- -11/Scrapyard -10/Materials (discovered 3 exits: *Mat / [*Min] / [*Sub]) -9/Materials (discovered 5 exits: *Mat x3 / *Min x2) -8/Materials (discovered 3 exits: *Fac x2 / *Sto) -8/Storage -7/Factory (discovered 2 exits: *Fac / *Low) -7/Lower Caves -7/Lower Caves (discovered 2 exits: *Fac / *Dat) -7/Data Miner -6/Proximity Caves -6/Factory -6/Lower Caves -5/Factory (discovered 2 exits: *Upp x2) -5/Upper Caves -5/Upper Caves -5/Zhirov -4/Proximity Caves -4/Factory (discovered 2 exits: *Res / *Ext) -4/Extension (discovered 2 exits: *Res / *Cet) -4/Cetus (discovered 2 exits: *Res / [*Arc]) -4/Archives (discovered 2 exits: *Res / *Hub) -4/Hub_04(d) (discovered 4 exits: *Res x4) -3/Research (discovered 2 exits: *Res / *Qua) -3/Quarantine -2/Research -2/Testing (discovered 3 exits: [*Acc] / *Sec / [*Frg]) -2/Section 7 (discovered 1 exit: [*Acc]) History --------- Turn | Location | Event 1 | -11/Scrapyard | Discovered new exit (range 1) 4 | -11/Scrapyard | Entered Materials 205 | -10/Materials | Core integrity fell below 50% 242 | -10/Materials | Discovered new exit (range 14) 300 | -10/Materials | Build established: Mutant 590 | -10/Materials | Discovered new exit (range 9) 598 | -10/Materials | Discovered new exit (range 14) 701 | -10/Materials | Core integrity fell below 20% 1045 | -10/Materials | Entered another Materials area 1045 | -9/Materials | Evolved 2 slots: Utility x2 1397 | -9/Materials | Lost 3 parts (1n2u) 1920 | -9/Materials | Discovered new exit (range 15) 2122 | -9/Materials | Learned Storage security intel 2176 | -9/Materials | Learned 4 Recycling zone layouts 2279 | -9/Materials | Learned location of 1 exit from Storage 2292 | -9/Materials | Core integrity fell below 50% 2293 | -9/Materials | Identified exit to Mines 2293 | -9/Materials | Identified exit to Materials 2493 | -9/Materials | Discovered exit to Materials (range 16) 2517 | -9/Materials | Entered another Materials area 2517 | -8/Materials | Evolved 2 slots: Power x1, Utility x1 2518 | -8/Materials | Identified exit to Storage 3275 | -8/Materials | Discovered new exit (range 3) 3277 | -8/Materials | Identified exit to Factory 3629 | -8/Materials | Discovered exit to Factory (range 13) 3692 | -8/Materials | Learned Factory garrison access intel 3803 | -8/Materials | Learned Factory trap positions 3843 | -8/Materials | Learned Factory security intel 3853 | -8/Materials | Entered Storage 3908 | -8/Storage | Learned location of Armory (-3) 4049 | -8/Storage | Garrison activated, responded to threat 4267 | -8/Storage | Garrison activated, responded to threat 4720 | -8/Storage | Met 01-MTF 4945 | -8/Storage | Entered Factory 4945 | -7/Factory | Accompanied by 1 ally (01-MTF) 4945 | -7/Factory | Evolved 2 slots: Propulsion x2 4946 | -7/Factory | Loaded intel: 100 trap records 4948 | -7/Factory | 01-MTF left 4948 | -7/Factory | Loaded intel: 4 garrison access locations 5875 | -7/Factory | Discovered new exit (range 9) 5883 | -7/Factory | Discovered new exit (range 15) 5888 | -7/Factory | Identified exit to Lower Caves 6054 | -7/Factory | Identified exit to Factory 6532 | -7/Factory | Entered Lower Caves 6763 | -7/Lower Caves | Learned location of Zion (-6) 6806 | -7/Lower Caves | Encountered a Warlord checkpoint 6921 | -7/Lower Caves | Discovered new exit (range 10) 6929 | -7/Lower Caves | Identified exit to Lower Caves 6930 | -7/Lower Caves | Entered another Lower Caves area 6978 | -7/Lower Caves | Discovered exit to Factory (range 11) 6982 | -7/Lower Caves | Learned Factory non-interactive machine intel 7249 | -7/Lower Caves | Discovered new exit (range 11) 7260 | -7/Lower Caves | Identified exit to Data Miner 7309 | -7/Lower Caves | Entered Data Miner 7311 | -7/Data Miner | Discovered new exit (range 6) 7333 | -7/Data Miner | Met Data Miner 7355 | -7/Data Miner | Learned location of Section 7 (-2) 7355 | -7/Data Miner | Acquired the access code to Warlord's prototype stash 7375 | -7/Data Miner | Received God Mode back door access code from Data Miner 7402 | -7/Data Miner | Identified exit to Proximity Caves 7427 | -7/Data Miner | Entered Proximity Caves 7754 | -6/Proximity Caves | Attracted the attention of an 0b10 checkpoint 7875 | -6/Proximity Caves | Acquired the password to a Derelict Tinkerer's latest research 7882 | -6/Proximity Caves | Found Prototype Special Weapon 7903 | -6/Proximity Caves | Discovered exit to Factory (range 14) 7965 | -6/Proximity Caves | Entered Factory 7965 | -6/Factory | Evolved 2 slots: Utility x1, Weapon x1 7966 | -6/Factory | Loaded intel: 174 non-interactive machine locations 8199 | -6/Factory | Identified exit to DSF 8242 | -6/Factory | Build established: Skirmisher 8248 | -6/Factory | Discovered new exit (range 8) 8255 | -6/Factory | Identified exit to Lower Caves 8356 | -6/Factory | Incoming investigation squad redirected 8726 | -6/Factory | Core integrity fell below 50% 8745 | -6/Factory | Released all parts (3) 8767 | -6/Factory | Lost 17 parts (3p5n3u6w) 8774 | -6/Factory | Identified Molecular Deconstructor 8778 | -6/Factory | Found Hvy. Reactive Plating 8860 | -6/Factory | Incoming investigation squad redirected 9355 | -6/Factory | Entered Lower Caves 9383 | -6/Lower Caves | Learned location of 1 exit from Factory 9647 | -6/Lower Caves | Build established: Mutant 9881 | -6/Lower Caves | Encountered a Warlord checkpoint 10936 | -6/Lower Caves | Lost 3 allies 10938 | -6/Lower Caves | ME-RLN showed up to help 10940 | -6/Lower Caves | ME-RLN revealed a hidden path 10947 | -6/Lower Caves | Identified exit to Factory 10951 | -6/Lower Caves | Entered Factory 10951 | -5/Factory | Evolved 2 slots: Power x1, Utility x1 10952 | -5/Factory | Identified exit to Upper Caves 11249 | -5/Factory | Build established: Skirmisher 11757 | -5/Factory | Fabricated Cld. Phase Gun (x1) 12326 | -5/Factory | Fabricated Adv. Cooling System? 12890 | -5/Factory | Lost 4 parts (2n2w) 13051 | -5/Factory | First assault squad dispatched 13205 | -5/Factory | Entered Upper Caves 13347 | -5/Upper Caves | Build established: Tank 13496 | -5/Upper Caves | Learned 4 Factory zone layouts 14087 | -5/Upper Caves | Build established: Scavenger-Tank 14383 | -5/Upper Caves | Attacked by a delusional Derelict stockpiling Unaware 15079 | -5/Upper Caves | Discovered new exit (range 11) 15099 | -5/Upper Caves | Identified exit to Upper Caves 15130 | -5/Upper Caves | Entered another Upper Caves area 15130 | -5/Upper Caves | Accompanied by 2 allies 15324 | -5/Upper Caves | Found Alien Artifact 15632 | -5/Upper Caves | Attracted the attention of an 0b10 outpost 15995 | -5/Upper Caves | Build established: Tank 16335 | -5/Upper Caves | Discovered new exit (range 10) 16348 | -5/Upper Caves | Identified exit to Zhirov 16375 | -5/Upper Caves | Entered Zhirov 16378 | -5/Zhirov | Discovered new exit (range 5) 16385 | -5/Zhirov | Identified exit to Proximity Caves 16428 | -5/Zhirov | Met Zhirov 16458 | -5/Zhirov | Learned location of Quarantine (-3) 16458 | -5/Zhirov | Learned location of Testing (-2) 16458 | -5/Zhirov | Learned location of Command (-1) 16472 | -5/Zhirov | Zhirov requested help retrieving the SGEMP Prototype 16507 | -5/Zhirov | Found Alien Artifact 16507 | -5/Zhirov | Identified Integrated Dissipator 16507 | -5/Zhirov | Installed Integrated Dissipator, increased core heat dissipation (+20) 16529 | -5/Zhirov | Found Alien Artifact 16680 | -5/Zhirov | Build established: Mutant 16722 | -5/Zhirov | Entered Proximity Caves 16992 | -4/Proximity Caves | Build established: Tank 17301 | -4/Proximity Caves | Spotted B-86 Titan 17770 | -4/Proximity Caves | Learned Research stockpile data 18126 | -4/Proximity Caves | Discovered new exit (range 15) 18152 | -4/Proximity Caves | Identified exit to Factory 18155 | -4/Proximity Caves | Entered Factory 18155 | -4/Factory | Evolved 2 slots: Propulsion x1, Utility x1 18156 | -4/Factory | Identified exit to Extension 18157 | -4/Factory | Identified exit to Research 18247 | -4/Factory | Incoming investigation squad redirected 18474 | -4/Factory | Identified Dimensional Node Initializer 18474 | -4/Factory | Identified Transdimensional Reconstructor 18802 | -4/Factory | Found Quantum Capacitor 19035 | -4/Factory | Entered Extension 19479 | -4/Extension | Lost 4 allies 19582 | -4/Extension | Rescued a captive Derelict 19631 | -4/Extension | Build established: Commander-Gunner 19663 | -4/Extension | Rescued a captive Derelict 19664 | -4/Extension | Lost 3 allies 19664 | -4/Extension | Rescued a captive Derelict 19703 | -4/Extension | Rescued A7 19780 | -4/Extension | Rescued a captive Derelict 19782 | -4/Extension | Rescued a captive Derelict 20519 | -4/Extension | Spotted B-86 Titan 20530 | -4/Extension | Destroyed B-86 Titan 20554 | -4/Extension | Spotted B-86 Titan 20562 | -4/Extension | Destroyed B-86 Titan 20582 | -4/Extension | Lost 5 allies 20621 | -4/Extension | Found Hvy. Reflective Plating 20729 | -4/Extension | Rescued a captive Derelict 20760 | -4/Extension | Rescued a captive Derelict 20833 | -4/Extension | Build established: Scavenger-Gunner 21172 | -4/Extension | Rescued a captive Derelict 21172 | -4/Extension | Rescued a captive Derelict 21297 | -4/Extension | Discovered new exit (range 14) 21303 | -4/Extension | Incoming investigation squad redirected 21314 | -4/Extension | Discovered exit to Research (range 15) 21427 | -4/Extension | Entered Cetus 21427 | -4/Cetus | Accompanied by 13 allies (A7) 21432 | -4/Cetus | Acquired a Cetus Manufacturing Module code from A7 21459 | -4/Cetus | Spotted Cetus Guard 21459 | -4/Cetus | Spotted Cetus Guard 21463 | -4/Cetus | Allies destroyed Cetus Guard 21463 | -4/Cetus | Spotted Cetus Guard 21467 | -4/Cetus | Spotted Cetus Guard 21478 | -4/Cetus | Destroyed Cetus Guard 21481 | -4/Cetus | Allies destroyed Cetus Guard 21489 | -4/Cetus | Allies destroyed Cetus Guard 21519 | -4/Cetus | Lost 4 allies 21523 | -4/Cetus | System corruption reached 10% 21626 | -4/Cetus | Started Cetus Manufacturing Module 21651 | -4/Cetus | Manufactured an Enhanced Grunt 21676 | -4/Cetus | Manufactured an Enhanced Grunt 21701 | -4/Cetus | Manufactured an Enhanced Grunt 21726 | -4/Cetus | Manufactured an Enhanced Grunt 21751 | -4/Cetus | Manufactured an Enhanced Grunt 21794 | -4/Cetus | Build established: Commander-Tank 21858 | -4/Cetus | Discovered new exit (range 15) 21899 | -4/Cetus | Spotted Cetus Guard 21899 | -4/Cetus | Spotted Cetus Guard 21899 | -4/Cetus | Spotted Cetus Guard 21903 | -4/Cetus | Destroyed Cetus Guard 21905 | -4/Cetus | Spotted Cetus Guard 21909 | -4/Cetus | Allies destroyed Cetus Guard 21915 | -4/Cetus | Allies destroyed Cetus Guard 21919 | -4/Cetus | Destroyed Cetus Guard 21929 | -4/Cetus | Discovered exit to Research (range 16) 21944 | -4/Cetus | Met Revision 17 22077 | -4/Cetus | Entered Archives 22077 | -4/Archives | Accompanied by 14 allies (A7) 22147 | -4/Archives | Discovered exit to Research (range 16) 22183 | -4/Archives | Discovered new exit (range 15) 22377 | -4/Archives | Entered Hub_04(d) 22377 | -4/Hub_04(d) | Accompanied by 13 allies 22627 | -4/Hub_04(d) | Network Hub disabled 22720 | -4/Hub_04(d) | Spotted B-86 Titan 22728 | -4/Hub_04(d) | Entered Research 22728 | -3/Research | Accompanied by 3 allies 22728 | -3/Research | Evolved 2 slots: Propulsion x1, Utility x1 22928 | -3/Research | Revision forces began assault on 0b10 22939 | -3/Research | Build established: Scavenger-Tank 23006 | -3/Research | Met up with Revision 17++ 23402 | -3/Research | Discovered new exit (range 12) 23428 | -3/Research | Research terminal network offline 23673 | -3/Research | Discovered new exit (range 14) 23907 | -3/Research | Spotted Striker 23922 | -3/Research | Destroyed Striker 23932 | -3/Research | Found Prototype Processor 23932 | -3/Research | Identified Exp. Signal Interpreter 23945 | -3/Research | Lost 3 allies 24159 | -3/Research | Entered Quarantine 24231 | -3/Quarantine | Found Alien Artifact 24305 | -3/Quarantine | Found Alien Artifact 24305 | -3/Quarantine | Identified Phase Armor 24360 | -3/Quarantine | Found Alien Artifact 24618 | -3/Quarantine | Found Alien Artifact 24757 | -3/Quarantine | Found Prototype Launcher 24757 | -3/Quarantine | Identified Adv. Micro-nuke Launcher 24970 | -3/Quarantine | Identified Core Reset Matrix 24970 | -3/Quarantine | Identified Hpw. Transdimensional Reconstructor 24970 | -3/Quarantine | Identified Subatomic Replicator 24999 | -3/Quarantine | Build established: Tank 25715 | -3/Quarantine | Discovered new exit (range 5) 25772 | -3/Quarantine | Initialized slip node 25784 | -3/Quarantine | Destroyed 7 combat bots 25801 | -3/Quarantine | Found Alien Artifact 25801 | -3/Quarantine | Identified Phase Redirector 25907 | -3/Quarantine | Found Alien Energy Cannon 26019 | -3/Quarantine | Build established: Gunner 26087 | -3/Quarantine | Found Alien Impact Weapon 26134 | -3/Quarantine | Found Hpw. Transdimensional Reconstructor 26149 | -3/Quarantine | Found Dimensional Node Initializer 26240 | -3/Quarantine | System corruption reached 10% 26891 | -3/Quarantine | Met incapacitated Sigix Warrior 26891 | -3/Quarantine | Lockdown squad dispatched 26897 | -3/Quarantine | Acquired the access code to the Sigix quarantine chamber 26900 | -3/Quarantine | Unlocked Sigix quarantine chamber 26906 | -3/Quarantine | Found Sigix Containment Pod 26990 | -3/Quarantine | Warped through subspace to slip node 27017 | -3/Quarantine | Entered Research 27017 | -2/Research | Evolved 2 slots: Utility x2 27310 | -2/Research | Spotted B-90 Cyclops 27312 | -2/Research | Destroyed B-90 Cyclops 27339 | -2/Research | Garrison activated, responded to threat 27550 | -2/Research | Build established: Tank 27569 | -2/Research | Destroyed 10 combat bots 27620 | -2/Research | Spotted B-90 Cyclops 27631 | -2/Research | Destroyed B-90 Cyclops 27754 | -2/Research | System corruption reached 10% 27767 | -2/Research | First assault squad dispatched 27786 | -2/Research | Incoming assault squad redirected 27811 | -2/Research | Destroyed 11 combat bots 27812 | -2/Research | Lost 5 parts (1p2n2u) 27827 | -2/Research | Warped through subspace 27833 | -2/Research | Incoming assault squad redirected 27850 | -2/Research | Discovered new exit (range 12) 27913 | -2/Research | Entered Testing 27940 | -2/Testing | Lost 6 parts (3p1n1u1w) 28079 | -2/Testing | Lost 6 parts (1p2n2u1w) 28084 | -2/Testing | Found Prototype Energy Cannon 28084 | -2/Testing | Identified Imp. Potential Cannon 28088 | -2/Testing | Found Imp. Potential Cannon 28244 | -2/Testing | Found Prototype Hackware 28290 | -2/Testing | Build established: Scavenger-Tank 28369 | -2/Testing | Discovered new exit (range 11) 28594 | -2/Testing | Found Prototype Device 28594 | -2/Testing | Identified Exp. Weapon Cycler 28820 | -2/Testing | Scanned by Researcher 28842 | -2/Testing | Found Prototype Protection 28842 | -2/Testing | Identified SHELL Armor 28849 | -2/Testing | Found Prototype Protection 28874 | -2/Testing | Found Prototype Energy Cannon 28874 | -2/Testing | Identified Disintegrator 28900 | -2/Testing | Spotted Striker 28900 | -2/Testing | Spotted Striker 28908 | -2/Testing | Destroyed Striker 28908 | -2/Testing | Spotted Alpha 7 28917 | -2/Testing | Destroyed Striker 28939 | -2/Testing | Destroyed Alpha 7 28964 | -2/Testing | Identified Med. Regenerative Plating 28966 | -2/Testing | Stole the SGEMP Prototype 29037 | -2/Testing | Lost 4 parts (1p1n2u) 29048 | -2/Testing | Destroyed 12 combat bots 29113 | -2/Testing | Found Prototype Launcher 29471 | -2/Testing | Identified Core Stripper 29484 | -2/Testing | Spotted Fortress 29516 | -2/Testing | Destroyed Fortress 29529 | -2/Testing | Found Prototype Reactor 29529 | -2/Testing | Identified Vortex Chain Reactor 29550 | -2/Testing | Found Prototype Device 29550 | -2/Testing | Identified Thermal Barrier 29553 | -2/Testing | Found Prototype Device 29553 | -2/Testing | Identified Exp. Force Field 29564 | -2/Testing | Found Prototype Protection 29564 | -2/Testing | Identified Centrium Heavy Armor Plating 29582 | -2/Testing | Found Vortex Chain Reactor 29663 | -2/Testing | First assault squad dispatched 29709 | -2/Testing | Discovered new exit (range 6) 29709 | -2/Testing | Discovered new exit (range 7) 29719 | -2/Testing | Entered Section 7 29847 | -2/Section 7 | Build established: Tank 29883 | -2/Section 7 | Identified Core Cannon 29973 | -2/Section 7 | Found Quantum Capacitor 30176 | -2/Section 7 | Spotted B-90 Cyclops 30179 | -2/Section 7 | Destroyed B-90 Cyclops 30213 | -2/Section 7 | Found Integrated Dissipator 30213 | -2/Section 7 | Installed Integrated Dissipator, increased core heat dissipation (+20) 30338 | -2/Section 7 | Found Alien Artifact 30338 | -2/Section 7 | Identified Integrated Reactor 30338 | -2/Section 7 | Installed Integrated Reactor, increased core energy generation (+10) 30469 | -2/Section 7 | First assault squad dispatched 30488 | -2/Section 7 | Discovered new exit (range 16) 30516 | -2/Section 7 | Destroyed 11 combat bots 30525 | -2/Section 7 | Initialized slip node 30594 | -2/Section 7 | High security lockdown imminent 30674 | -2/Section 7 | High security lockdown engaged 30718 | -2/Section 7 | Spotted Executioner 30719 | -2/Section 7 | Destroyed Executioner 30725 | -2/Section 7 | Spotted Executioner 30725 | -2/Section 7 | Destroyed Executioner 30726 | -2/Section 7 | Spotted Striker 30739 | -2/Section 7 | Destroyed Striker 30798 | -2/Section 7 | Identified Z-bomb Delivery System 30800 | -2/Section 7 | Spotted Alpha 7 30806 | -2/Section 7 | Destroyed Executioner 30806 | -2/Section 7 | Spotted Striker 30820 | -2/Section 7 | Destroyed Alpha 7 30841 | -2/Section 7 | Destroyed 12 combat bots 30854 | -2/Section 7 | Spotted Investigator 30862 | -2/Section 7 | Core integrity fell below 50% 30879 | -2/Section 7 | Spotted B-99 Colossus 30879 | -2/Section 7 | Scanned by Researcher 30883 | -2/Section 7 | Lost 5 parts (1p1n2u1w) 30933 | -2/Section 7 | Warped through subspace to slip node 30934 | -2/Section 7 | Core integrity fell below 20% 30934 | -2/Section 7 | Destroyed by Y-72 Warden with Railgun Last Messages --------------- 30926_ Adv. Energy Well destroyed. 30927_ Slug penetrates Reinforced Barrier. 30927_ Penetrated by Slug. 30927_ Slug penetrates Machine. 30927_ Rnf. Quantum Reactor destroyed. 30930_ Triggered Blade Trap. 30930_ Massive razor-sharp blades shoot up from within the floor. 30930_ Exp. Biometal Medium Treads severed. 30930_ Graphene Brace severed. 30930_ Exp. Weapon Cycler severed. 30933_ Warped through subspace, drawn to slip node. 30933_ Dimensional Slip Node implodes. 30933_ Huge Storage Unit destroyed. 30933_ Y-72 Warden destroyed. 30933_ Penetrated by Slug. 30934_ Extracted 6 energy. 30934_ Penetrated by Slug. [Achievement: Superachiever] Map ----- +----------------------------------------------------+ | | | | | | | | | | | | | | | | | | | | | | | | | | | | | | | | | | | | | | | | | | | | | ?????????????# #### ###???????????????? | | ???????####### ] #???????????????? | | ?????###"";;;;;; #????????????????? | | ?????# @= #????????????????? | | ????##% Y< #????????????????? | | #####% %* % Y #????????????????? | | [%! ##????????????????? | | ### ###" !;;;####; #?????????????####? | | ??# #?## ##??### ###???????????? | | ??# #??##### #?????# """ ##??????????????" | | ?? #??????## #????# """ #?????????????? " | | ?? #????????# #???# """ #?????????????? | | ?? #?????????##???# """ #?????????????? " % | | ?? #??????????????# """ #?????????????? " | | ? #??????????????# """ #???????????????## | | ? #??????????????# """ ##???????????????# "? | | ? ???????????????# ;#???????????????# #? | | ? ???????????????########;##???????????????# #? | | ????????????????# =[ ##;################## #? | | ????????????????# *%[ #? | | ????????????????# =![ #? | | #???????????????# *%[#########+######+######? | | ? #??????????????### ###### # ????? | | #??????????????#""!!#= !# "" # """" #??? | | #??????????????#T %%# # "G # ""R" #??? | | #??????????????###!=+ # "" # "" " #??? | | #????????????????# # # # #??? | | "" #??????????????? # # #! #??? | +----------------------------------------------------+ Best States ------------- Heat Dissipation 205 Coolant Potential 200 Energy Generation 85 Energy Capacity 1850 Matter Stores 300 Matter Capacity 300 Sight Range 16 Robot Scan Range 16 Terrain Scan Density 10 Jamming Range 16 Power Amplification 30 Base Temperature (-) 200 Armor Coverage 2250 Resistance: KI 40 Resistance: TH 25 Resistance: EM 25 Core Shielding 30 Utility Shielding 90 Weapon Cycling 30 Phase Shifting 5 Evasion (%) 58 Targeting Accuracy 16 Recoil Reduction 6 Energy Filtering 50 Particle Charging 20 Offensive Hacking 14 Defensive Hacking 12 Item Schematics ----------------- Combat Drone Bay | -7/Data Miner | Free Lgt. Regenerative Plating | -7/Data Miner | Free Biomechanical Wings | -7/Data Miner | Free Exp. Targeting Computer | -7/Data Miner | Free Com. Ion Cannon | -7/Data Miner | Free Gyrokinetic Inverter | -7/Data Miner | Free Wave Gun | -7/Data Miner | Free Lgt. Fission Core | -7/Data Miner | Free Adv. Cooling System | -7/Data Miner | Free Neutrino Core | -7/Data Miner | Free Imp. System Guard | -7/Data Miner | Free Imp. Force Booster | -7/Data Miner | Free Assault Drone Bay | -5/Zhirov | Free Exp. Heat Sink | -5/Zhirov | Free Exp. Optical Array | -5/Zhirov | Free Imp. Arc Thrower | -5/Zhirov | Free Stealth Drone Bay | -2/Testing | Archive Robot Schematics ------------------ L-41 Fighter | -7/Data Miner | Free M-22 Extractor | -7/Data Miner | Free X-62 Marksman | -7/Data Miner | Free Fabricated ------------ Cld. Phase Gun | x1 | -5/Factory | Preloaded Adv. Cooling System | x2 | -5/Factory Repaired ---------- Nothing Alien Tech Used ----------------- Integrated Dissipator Phase Armor Dimensional Node Initializer Phase Redirector Transdimensional Reconstructor High-powered Transdimensional Reconstructor Core Stripper Core Cannon Integrated Reactor Achievements -------------- Giant Slayer Pyromaniac Sunderer Superachiever Challenges ------------ None Game ------ Seed HelicalPartitionLink Manual? 0 Play Time 06:56:05 Cumulative 74.5 hours Start 2025.08.10 @ 00:49:24 End 2025.08.10 @ 23:31:58 Sessions 3 Manual Loads 0 Difficulty Rogue Special Mode None Game No. 23 Rogue 23 Adventurer 0 Explorer 0 Win Type - Total 1 Types 0/0/1/0/0/0/0/0/0/0 Lore% 55 Gallery% 52 Achievement% 75 Wizard Run 0 Options --------- Layout 2 ASCII 0 Keyboard 1 Movement Vi Keybinds 0 Fullscreen 1 Font 28/SwanstonBold Map View 50x52 Zoom Use 0% Tactical HUD 1 Map Filters NONE Filters NONE Steam 1 RUN: 4d881120-5ed4-4eac-8f7d-0f405ac56d58